fUSD/lending_fUSD_20260605
["ID","MTS","AMOUNT","RATE_DAILY","PERIOD"]
[424153194,1780613449000,-514.93560062,0.00030582,2]
[424153196,1780613449000,-399.97725993,0.00030582,2]
[424153200,1780613449000,-414.00286046,0.00030582,2]
[424153201,1780613449000,-431.89152006,0.00030582,2]
[424153198,1780613449000,-645.25305355,0.00030582,2]
[424153199,1780613449000,-653.64743524,0.00030582,2]
[424153197,1780613449000,-154.40514762,0.00030582,2]
[424153204,1780613449000,-581.63878933,0.00030582,2]
[424153202,1780613449000,-367.38709948,0.00030582,2]
[424153205,1780613449000,-425.61616874,0.00030582,2]
[424153203,1780613449000,-413.78986884,0.00030582,2]
[424153208,1780613449000,-555.34353453,0.00030582,2]
[424153218,1780613449000,-711.71938808,0.00030582,2]
[424153207,1780613449000,-801.04602934,0.00030582,2]
[424153195,1780613449000,-370.92585577,0.00030582,2]
[424153247,1780613449000,-179.20247452,0.00031144,2]
[424153206,1780613449000,-411.71942213,0.00030582,2]
[424153243,1780613449000,-504.0,0.00031082,6]
[424153278,1780613449000,-499.99,0.00031655,120]
[424153277,1780613449000,-2000.0,0.00031649,6]
[424153279,1780613449000,-277.18,0.00031685,120]
[424153276,1780613449000,-150.0,0.00031644,2]
[424153284,1780613449000,-1179.31,0.000319,7]
[424153288,1780613449000,-991.70395844,0.00032038,2]
[424153283,1780613449000,-504.0,0.00031871,7]
[424153285,1780613449000,-219.7904073,0.00031933,2]
[424153290,1780613449000,-985.40957559,0.00032038,2]
[424153286,1780613449000,-179.20247452,0.00032013,2]
[424153287,1780613449000,-941.53567775,0.00032038,2]
[424153289,1780613449000,-997.27810327,0.00032038,2]
[424153292,1780613449000,-259.21326132,0.00032131,2]
[424153274,1780613449000,-250.99567423,0.00031507,30]
[424153291,1780613449000,-979.72255765,0.00032038,2]
[424153295,1780613449000,-160.0,0.000322,8]
[424153303,1780613449000,-529.0,0.00032374,30]
[424153294,1780613449000,-292.89,0.00032192,2]
[424153296,1780613449000,-3745.4,0.0003221,5]
[424153298,1780613449000,-368.0,0.00032374,30]
[424153300,1780613449000,-288.0,0.00032374,30]
[424153304,1780613449000,-995.0,0.00032386,30]
[424153299,1780613449000,-2842.0,0.00032374,30]
[424153305,1780613449000,-332.0,0.00032386,30]
[424153301,1780613449000,-377.0,0.00032374,30]
[424153306,1780613449000,-228.0,0.00032401,30]
[424153302,1780613449000,-2393.0,0.00032374,30]
[424153245,1780613449000,-259.21326132,0.00031131,2]
[424153293,1780613449000,-5681.68346425,0.00032158,2]
[424153281,1780613449000,-245.968,0.00031794,30]
[424153297,1780613449000,-1707.67,0.000323,7]
[424153275,1780613449000,-179.20247452,0.00031578,2]
[424153273,1780613449000,-558.46,0.000315,7]
[424153246,1780613449000,-504.62739579,0.00031143,2]
[424153254,1780613449000,-854.77248278,0.00031164,2]
[424153253,1780613449000,-816.43546471,0.00031164,2]
[424153250,1780613449000,-806.56631694,0.00031164,2]
[424153244,1780613449000,-832.48518885,0.00031111,2]
[424153252,1780613449000,-889.6492351,0.00031164,2]
[424153248,1780613449000,-853.35737352,0.00031164,2]
[424153251,1780613449000,-821.17464632,0.00031164,2]
[424153249,1780613449000,-831.06508606,0.00031164,2]
[424153263,1780613449000,-2393.0,0.00031374,30]
[424153268,1780613449000,-418.0,0.00031401,30]
[424153265,1780613449000,-995.0,0.00031386,30]
[424153267,1780613449000,-228.0,0.00031401,30]
[424153255,1780613449000,-1707.67,0.000312,7]
[424153256,1780613449000,-160.0,0.000312,4]
[424153282,1780613449000,-197.97538926,0.00031805,2]
[424153264,1780613449000,-529.0,0.00031374,30]
[424153280,1780613449000,-4401.638,0.00031794,30]
[424153270,1780613449000,-1388.0,0.00031401,30]
[424153271,1780613449000,-1740.0,0.00031401,30]
[424153272,1780613449000,-622.0,0.00031401,30]
[424153262,1780613449000,-377.0,0.00031374,30]
[424153269,1780613449000,-155.0,0.00031401,30]
[424153259,1780613449000,-368.0,0.00031374,30]
[424153258,1780613449000,-1000.0,0.000312,7]
[424153261,1780613449000,-288.0,0.00031374,30]
[424153257,1780613449000,-322.05949106,0.000312,2]
[424153266,1780613449000,-332.0,0.00031386,30]
[424153260,1780613449000,-2842.0,0.00031374,30]
[424153332,1780613450000,-1000.0,0.00032877,30]
[424153329,1780613450000,-933.0,0.00032869,2]
[424153335,1780613450000,-1000.0,0.00032877,30]
[424153344,1780613450000,-477.56845309,0.00033123,120]
[424153334,1780613450000,-1000.0,0.00032877,30]
[424153333,1780613450000,-1000.0,0.00032877,30]
[424153336,1780613450000,-500.6324604,0.00032877,2]
[424153338,1780613450000,-274.05,0.000329,120]
[424153342,1780613450000,-1000.0,0.00033,2]
[424153339,1780613450000,-2000.0,0.00032938,8]
[424153347,1780613450000,-160.0,0.000332,11]
[424153343,1780613450000,-571.96819715,0.00033123,120]
[424153341,1780613450000,-1069.11,0.00033,30]
[424153340,1780613450000,-144070.73128,0.00033,60]
[424153345,1780613450000,-172.80884088,0.00033131,7]
[424153348,1780613450000,-179.20247452,0.00033317,2]
[424153349,1780613450000,-280.0,0.00033334,10]
[424153356,1780613450000,-368.0,0.00033374,30]
[424153328,1780613450000,-150.0,0.00032869,2]
[424153346,1780613450000,-762.19,0.00033182,14]
[424153337,1780613450000,-179.20247452,0.00032882,2]
[424153330,1780613450000,-418.0,0.00032869,2]
[424153315,1780613450000,-2000.0,0.00032641,25]
[424153323,1780613450000,-1357.0,0.00032869,2]
[424153350,1780613450000,-322.0,0.00033334,10]
[424153307,1780613450000,-418.0,0.00032401,30]
[424153309,1780613450000,-1388.0,0.00032401,30]
[424153316,1780613450000,-504.0,0.0003266,8]
[424153308,1780613450000,-155.0,0.00032401,30]
[424153317,1780613450000,-1000.0,0.000327,120]
[424153319,1780613450000,-1179.31,0.000328,7]
[424153314,1780613450000,-277.18,0.00032589,120]
[424153311,1780613450000,-622.0,0.00032401,30]
[424153326,1780613450000,-150.0,0.00032869,2]
[424153318,1780613450000,-240.067694,0.00032782,14]
[424153310,1780613450000,-1740.0,0.00032401,30]
[424153313,1780613450000,-150.0,0.00032562,2]
[424153320,1780613450000,-309.0,0.000328,2]
[424153325,1780613450000,-525.0,0.00032869,2]
[424153322,1780613450000,-315.0,0.000328,2]
[424153324,1780613450000,-1273.0,0.00032869,2]
[424153321,1780613450000,-282.0,0.000328,2]
[424153327,1780613450000,-150.0,0.00032869,2]
[424153331,1780613450000,-242.02,0.00032877,2]
[424153312,1780613450000,-179.20247452,0.00032448,2]
[424153353,1780613450000,-1220.84794899,0.00033347,2]
[424153352,1780613450000,-1163.49112048,0.00033347,2]
[424153354,1780613450000,-1149.64450485,0.00033347,2]
[424153382,1780613450000,-107148.10199517,0.00033781,7]
[424153381,1780613450000,-43237.42917902,0.00033781,7]
[424153389,1780613450000,-834.811559,0.00033781,7]
[424153383,1780613450000,-151.0,0.00033781,7]
[424153380,1780613450000,-4199.64510834,0.00033781,7]
[424153384,1780613450000,-151.0,0.00033781,7]
[424153386,1780613450000,-151.0,0.00033781,7]
[424153390,1780613450000,-834.811559,0.00033781,7]
[424153388,1780613450000,-151.0,0.00033781,7]
[424153379,1780613450000,-1342.0,0.00033781,2]
[424153385,1780613450000,-151.0,0.00033781,7]
[424153391,1780613450000,-834.811559,0.00033781,7]
[424153393,1780613450000,-152.594755,0.00033781,7]
[424153395,1780613450000,-151.0,0.00033781,7]
[424153394,1780613450000,-151.0,0.00033781,7]
[424153396,1780613450000,-154.2948,0.00033781,7]
[424153397,1780613450000,-557.281833,0.00033781,7]
[424153398,1780613450000,-151.0,0.00033781,7]
[424153399,1780613450000,-557.281833,0.00033781,7]
[424153400,1780613450000,-154.772341,0.00033781,7]
[424153387,1780613450000,-151.0,0.00033781,7]
[424153376,1780613450000,-500.0,0.00033755,120]
[424153392,1780613450000,-834.811559,0.00033781,7]
[424153378,1780613450000,-1369.0,0.00033781,2]
[424153351,1780613450000,-1098.4582907,0.00033347,2]
[424153377,1780613450000,-500.0,0.00033755,120]
[424153355,1780613450000,-1143.00965059,0.00033347,2]
[424153358,1780613450000,-288.0,0.00033374,30]
[424153359,1780613450000,-377.0,0.00033374,30]
[424153357,1780613450000,-2842.0,0.00033374,30]
[424153360,1780613450000,-2393.0,0.00033374,30]
[424153362,1780613450000,-995.0,0.00033386,30]
[424153364,1780613450000,-1707.67,0.000334,30]
[424153363,1780613450000,-332.0,0.00033386,30]
[424153361,1780613450000,-529.0,0.00033374,30]
[424153365,1780613450000,-558.46,0.000334,7]
[424153366,1780613450000,-228.0,0.00033401,30]
[424153372,1780613450000,-504.0,0.00033449,8]
[424153370,1780613450000,-1740.0,0.00033401,30]
[424153368,1780613450000,-155.0,0.00033401,30]
[424153371,1780613450000,-622.0,0.00033401,30]
[424153375,1780613450000,-179.20247452,0.00033751,2]
[424153369,1780613450000,-1388.0,0.00033401,30]
[424153367,1780613450000,-418.0,0.00033401,30]
[424153373,1780613450000,-671.53646064,0.00033516,2]
[424153374,1780613450000,-248.0,0.00033679,10]
[424153451,1780613451000,-400.45701247,0.00034453,2]
[424153442,1780613451000,-228.0,0.00034401,30]
[424153445,1780613451000,-1388.0,0.00034401,30]
[424153450,1780613451000,-400.0,0.00034453,2]
[424153448,1780613451000,-150.0,0.00034419,2]
[424153435,1780613451000,-2842.0,0.00034374,30]
[424153437,1780613451000,-377.0,0.00034374,30]
[424153436,1780613451000,-288.0,0.00034374,30]
[424153432,1780613451000,-186.04151345,0.00034309,2]
[424153439,1780613451000,-529.0,0.00034374,30]
[424153434,1780613451000,-368.0,0.00034374,30]
[424153440,1780613451000,-995.0,0.00034386,30]
[424153449,1780613451000,-198.0,0.00034419,2]
[424153460,1780613451000,-218.0,0.00034734,2]
[424153443,1780613451000,-418.0,0.00034401,30]
[424153444,1780613451000,-155.0,0.00034401,30]
[424153447,1780613451000,-622.0,0.00034401,30]
[424153446,1780613451000,-1740.0,0.00034401,30]
[424153452,1780613451000,-407.0,0.00034453,2]
[424153457,1780613451000,-281.0,0.00034704,10]
[424153454,1780613451000,-1781.45481,0.000345,120]
[424153455,1780613451000,-2000.0,0.00034546,36]
[424153456,1780613451000,-588.8,0.00034648,120]
[424153459,1780613451000,-300.0,0.00034734,2]
[424153458,1780613451000,-300.0,0.00034734,2]
[424153463,1780613451000,-151.0,0.0003488,7]
[424153431,1780613451000,-917.24,0.0003429,2]
[424153441,1780613451000,-332.0,0.00034386,30]
[424153438,1780613451000,-2393.0,0.00034374,30]
[424153409,1780613451000,-293.0538764,0.00033933,7]
[424153430,1780613451000,-500.0,0.0003429,2]
[424153402,1780613451000,-557.281833,0.00033781,7]
[424153401,1780613451000,-557.281833,0.00033781,7]
[424153403,1780613451000,-749.673451,0.00033781,7]
[424153405,1780613451000,-749.673451,0.00033781,7]
[424153404,1780613451000,-749.673451,0.00033781,7]
[424153406,1780613451000,-749.673451,0.00033781,7]
[424153407,1780613451000,-263.96718568,0.00033805,7]
[424153408,1780613451000,-252.17389107,0.00033848,2]
[424153461,1780613451000,-1500.0,0.00034795,2]
[424153411,1780613451000,-157.507623,0.00034,120]
[424153413,1780613451000,-172.80884088,0.00034131,7]
[424153412,1780613451000,-504.62739579,0.00034066,2]
[424153410,1780613451000,-1179.31,0.00034,30]
[424153415,1780613451000,-322.0,0.00034156,10]
[424153418,1780613451000,-150.0,0.0003419,2]
[424153425,1780613451000,-1000.0,0.00034247,120]
[424153416,1780613451000,-3745.4,0.00034182,7]
[424153426,1780613451000,-1000.0,0.00034247,120]
[424153414,1780613451000,-339.4217023,0.00034153,2]
[424153417,1780613451000,-179.20247447,0.00034186,2]
[424153424,1780613451000,-1000.0,0.00034247,120]
[424153421,1780613451000,-2000.0,0.00034227,9]
[424153423,1780613451000,-473.86,0.00034247,7]
[424153422,1780613451000,-504.0,0.00034238,9]
[424153419,1780613451000,-238.2,0.000342,14]
[424153420,1780613451000,-1002.44,0.000342,14]
[424153427,1780613451000,-1000.0,0.00034247,120]
[424153428,1780613451000,-1000.0,0.00034247,120]
[424153429,1780613451000,-1182.0,0.00034247,120]
[424153433,1780613451000,-186.04151345,0.00034309,2]
[424153462,1780613451000,-2000.0,0.000348,7]
[424153453,1780613451000,-408.05579473,0.00034453,2]
[424153475,1780613451000,-1500.0,0.000349,7]
[424153495,1780613451000,-300.0,0.00034904,2]
[424153499,1780613451000,-300.0,0.00034904,2]
[424153496,1780613451000,-493.81396627,0.00034904,2]
[424153497,1780613451000,-300.0,0.00034904,2]
[424153498,1780613451000,-300.0,0.00034904,2]
[424153504,1780613451000,-300.0,0.00034904,2]
[424153506,1780613451000,-300.0,0.00034904,2]
[424153509,1780613451000,-727.72406262,0.00034904,2]
[424153508,1780613451000,-535.22980368,0.00034904,2]
[424153511,1780613451000,-302.47682808,0.00034904,2]
[424153507,1780613451000,-1069.39140751,0.00034904,2]
[424153515,1780613451000,-300.0,0.00034904,2]
[424153516,1780613451000,-300.0,0.00034904,2]
[424153494,1780613451000,-300.0,0.00034904,2]
[424153513,1780613451000,-301.27126872,0.00034904,2]
[424153510,1780613451000,-300.0,0.00034904,2]
[424153505,1780613451000,-3206.33486172,0.00034904,2]
[424153514,1780613451000,-300.0,0.00034904,2]
[424153518,1780613451000,-300.0,0.00034904,2]
[424153519,1780613451000,-300.0,0.00034904,2]
[424153520,1780613451000,-1079.85959652,0.00034904,2]
[424153522,1780613451000,-344.73760311,0.00034904,2]
[424153523,1780613451000,-528.08660383,0.00034904,2]
[424153526,1780613451000,-300.0,0.00034904,2]
[424153521,1780613451000,-300.0,0.00034904,2]
[424153525,1780613451000,-300.6363742,0.00034904,2]
[424153524,1780613451000,-300.0,0.00034904,2]
[424153465,1780613451000,-151.0,0.0003488,7]
[424153512,1780613451000,-300.0,0.00034904,2]
[424153492,1780613451000,-300.0,0.00034904,2]
[424153517,1780613451000,-300.0,0.00034904,2]
[424153493,1780613451000,-300.0,0.00034904,2]
[424153491,1780613451000,-300.0,0.00034904,2]
[424153464,1780613451000,-151.0,0.0003488,7]
[424153476,1780613451000,-151.0,0.00034904,7]
[424153466,1780613451000,-246.517908,0.0003488,7]
[424153471,1780613451000,-151.0,0.0003488,7]
[424153469,1780613451000,-246.517908,0.0003488,7]
[424153470,1780613451000,-151.0,0.0003488,7]
[424153468,1780613451000,-246.517908,0.0003488,7]
[424153472,1780613451000,-936.0,0.00034895,3]
[424153473,1780613451000,-2000.0,0.00034899,12]
[424153474,1780613451000,-1707.67,0.000349,30]
[424153478,1780613451000,-151.0,0.00034904,7]
[424153477,1780613451000,-151.0,0.00034904,7]
[424153481,1780613451000,-187.729829,0.00034904,7]
[424153467,1780613451000,-246.517908,0.0003488,7]
[424153479,1780613451000,-151.0,0.00034904,7]
[424153502,1780613451000,-300.0,0.00034904,2]
[424153503,1780613451000,-300.0,0.00034904,2]
[424153483,1780613451000,-187.729829,0.00034904,7]
[424153501,1780613451000,-605.83002711,0.00034904,2]
[424153500,1780613451000,-598.74805601,0.00034904,2]
[424153486,1780613451000,-1097.41045792,0.00034904,2]
[424153484,1780613451000,-300.0,0.00034904,2]
[424153485,1780613451000,-300.0,0.00034904,2]
[424153487,1780613451000,-300.0,0.00034904,2]
[424153480,1780613451000,-187.729829,0.00034904,7]
[424153490,1780613451000,-300.0,0.00034904,2]
[424153489,1780613451000,-300.0,0.00034904,2]
[424153488,1780613451000,-300.0,0.00034904,2]
[424153482,1780613451000,-187.729829,0.00034904,7]
[424153547,1780613452000,-300.0,0.00034904,2]
[424153559,1780613452000,-300.0,0.00034904,2]
[424153548,1780613452000,-300.0,0.00034904,2]
[424153551,1780613452000,-300.0,0.00034904,2]
[424153550,1780613452000,-300.46844783,0.00034904,2]
[424153549,1780613452000,-300.0,0.00034904,2]
[424153558,1780613452000,-359.78781314,0.00034904,2]
[424153556,1780613452000,-300.0,0.00034904,2]
[424153560,1780613452000,-300.0,0.00034904,2]
[424153563,1780613452000,-300.0,0.00034904,2]
[424153557,1780613452000,-1097.41045792,0.00034904,2]
[424153564,1780613452000,-300.0,0.00034904,2]
[424153565,1780613452000,-300.0,0.00034904,2]
[424153561,1780613452000,-300.68277286,0.00034904,2]
[424153568,1780613452000,-493.81396627,0.00034904,2]
[424153567,1780613452000,-300.0,0.00034904,2]
[424153545,1780613452000,-626.51557854,0.00034904,2]
[424153570,1780613452000,-300.64673581,0.00034904,2]
[424153562,1780613452000,-300.0,0.00034904,2]
[424153546,1780613452000,-452.9387939,0.00034904,2]
[424153537,1780613452000,-300.46093737,0.00034904,2]
[424153554,1780613452000,-300.64704916,0.00034904,2]
[424153580,1780613452000,-525.70131891,0.00034904,2]
[424153528,1780613452000,-951.1616413,0.00034904,2]
[424153529,1780613452000,-1801.30324439,0.00034904,2]
[424153527,1780613452000,-866.34655626,0.00034904,2]
[424153530,1780613452000,-300.0,0.00034904,2]
[424153540,1780613452000,-595.33490838,0.00034904,2]
[424153532,1780613452000,-300.0,0.00034904,2]
[424153531,1780613452000,-300.0,0.00034904,2]
[424153535,1780613452000,-300.0,0.00034904,2]
[424153553,1780613452000,-310.56504798,0.00034904,2]
[424153538,1780613452000,-300.0,0.00034904,2]
[424153534,1780613452000,-300.0,0.00034904,2]
[424153536,1780613452000,-1637.36858291,0.00034904,2]
[424153539,1780613452000,-300.0,0.00034904,2]
[424153542,1780613452000,-303.20358136,0.00034904,2]
[424153533,1780613452000,-310.31256806,0.00034904,2]
[424153544,1780613452000,-300.0,0.00034904,2]
[424153552,1780613452000,-485.24111317,0.00034904,2]
[424153543,1780613452000,-512.46109187,0.00034904,2]
[424153555,1780613452000,-300.0,0.00034904,2]
[424153541,1780613452000,-300.0,0.00034904,2]
[424153569,1780613452000,-300.0,0.00034904,2]
[424153566,1780613452000,-300.0,0.00034904,2]
[424153572,1780613452000,-300.0,0.00034904,2]
[424153598,1780613452000,-1801.30324439,0.00034904,2]
[424153599,1780613452000,-300.0,0.00034904,2]
[424153602,1780613452000,-310.31256806,0.00034904,2]
[424153600,1780613452000,-538.79399426,0.00034904,2]
[424153601,1780613452000,-300.0,0.00034904,2]
[424153604,1780613452000,-300.0,0.00034904,2]
[424153603,1780613452000,-300.0,0.00034904,2]
[424153605,1780613452000,-1637.36858291,0.00034904,2]
[424153611,1780613452000,-300.0,0.00034904,2]
[424153596,1780613452000,-866.34655626,0.00034904,2]
[424153610,1780613452000,-300.0,0.00034904,2]
[424153612,1780613452000,-512.46109187,0.00034904,2]
[424153607,1780613452000,-300.0,0.00034904,2]
[424153606,1780613452000,-300.0,0.00034904,2]
[424153613,1780613452000,-300.0,0.00034904,2]
[424153615,1780613452000,-300.0,0.00034904,2]
[424153617,1780613452000,-300.0,0.00034904,2]
[424153616,1780613452000,-452.9387939,0.00034904,2]
[424153614,1780613452000,-626.51557854,0.00034904,2]
[424153576,1780613452000,-300.0,0.00034904,2]
[424153609,1780613452000,-595.33490838,0.00034904,2]
[424153597,1780613452000,-951.1616413,0.00034904,2]
[424153608,1780613452000,-300.0,0.00034904,2]
[424153594,1780613452000,-300.0,0.00034904,2]
[424153575,1780613452000,-3206.33486172,0.00034904,2]
[424153595,1780613452000,-300.0,0.00034904,2]
[424153571,1780613452000,-605.83002711,0.00034904,2]
[424153573,1780613452000,-300.38369239,0.00034904,2]
[424153579,1780613452000,-727.72406262,0.00034904,2]
[424153574,1780613452000,-300.0,0.00034904,2]
[424153578,1780613452000,-535.22980368,0.00034904,2]
[424153582,1780613452000,-301.27126872,0.00034904,2]
[424153581,1780613452000,-302.47682808,0.00034904,2]
[424153585,1780613452000,-300.0,0.00034904,2]
[424153577,1780613452000,-1069.39140751,0.00034904,2]
[424153584,1780613452000,-300.0,0.00034904,2]
[424153593,1780613452000,-300.0,0.00034904,2]
[424153586,1780613452000,-300.0,0.00034904,2]
[424153588,1780613452000,-300.0,0.00034904,2]
[424153587,1780613452000,-300.0,0.00034904,2]
[424153592,1780613452000,-528.08660383,0.00034904,2]
[424153589,1780613452000,-1079.85959652,0.00034904,2]
[424153591,1780613452000,-344.73760311,0.00034904,2]
[424153583,1780613452000,-300.0,0.00034904,2]
[424153590,1780613452000,-300.0,0.00034904,2]
[424153634,1780613453000,-891.1008483,0.00034913,60]
[424153636,1780613453000,-554.4033122,0.00034913,60]
[424153640,1780613453000,-890.4991091,0.00034913,60]
[424153635,1780613453000,-562.9797939,0.00034913,60]
[424153637,1780613453000,-967.8691092,0.00034913,60]
[424153642,1780613453000,-500.0,0.00034913,60]
[424153639,1780613453000,-500.0,0.00034913,60]
[424153641,1780613453000,-351.7175535,0.00034913,60]
[424153643,1780613453000,-500.0,0.00034913,60]
[424153632,1780613453000,-162.5045091,0.00034913,60]
[424153647,1780613453000,-706.0,0.00034921,2]
[424153638,1780613453000,-500.0,0.00034913,60]
[424153633,1780613453000,-924.8490197,0.00034913,60]
[424153622,1780613453000,-485.24111317,0.00034904,2]
[424153630,1780613453000,-500.0,0.00034913,60]
[424153629,1780613453000,-151.8478076,0.00034913,60]
[424153628,1780613453000,-719.0682452,0.00034913,60]
[424153627,1780613453000,-6280.3595,0.00034908,2]
[424153625,1780613453000,-162.9092,0.00034908,2]
[424153624,1780613453000,-300.0,0.00034904,2]
[424153626,1780613453000,-240.6214,0.00034908,2]
[424153623,1780613453000,-310.56504798,0.00034904,2]
[424153621,1780613453000,-300.0,0.00034904,2]
[424153620,1780613453000,-300.0,0.00034904,2]
[424153618,1780613453000,-300.0,0.00034904,2]
[424153619,1780613453000,-300.0,0.00034904,2]
[424153645,1780613453000,-250.0,0.00034921,7]
[424153631,1780613453000,-500.0,0.00034913,60]
[424153644,1780613453000,-791.896713,0.00034913,60]
[424153659,1780613453000,-1002.44,0.000351,14]
[424153648,1780613453000,-322.0,0.00034978,10]
[424153676,1780613453000,-1168713.68281195,0.00035284,2]
[424153675,1780613453000,-1649.96499773,0.00035284,31]
[424153674,1780613453000,-6280.3595,0.00035282,2]
[424153673,1780613453000,-500.0,0.00035233,2]
[424153646,1780613453000,-1185.0,0.00034921,2]
[424153671,1780613453000,-2000.0,0.00035199,13]
[424153669,1780613453000,-5681.68346425,0.00035184,2]
[424153672,1780613453000,-2000.0,0.00035199,17]
[424153668,1780613453000,-10772.7008171,0.00035181,2]
[424153666,1780613453000,-151.0,0.00035158,7]
[424153667,1780613453000,-6280.3595,0.00035158,2]
[424153664,1780613453000,-151.0,0.00035158,7]
[424153665,1780613453000,-151.0,0.00035158,7]
[424153670,1780613453000,-187.99013606,0.00035184,47]
[424153662,1780613453000,-223.12735452,0.00035152,2]
[424153661,1780613453000,-191.0,0.00035149,2]
[424153650,1780613453000,-310.76,0.00035,2]
[424153651,1780613453000,-310.76,0.00035,5]
[424153649,1780613453000,-2000.0,0.00034999,4]
[424153652,1780613453000,-200.0,0.00035,120]
[424153653,1780613453000,-2000.0,0.00035,3]
[424153654,1780613453000,-1199.999999,0.00035,2]
[424153655,1780613453000,-504.0,0.00035027,10]
[424153657,1780613453000,-6280.3595,0.00035033,2]
[424153660,1780613453000,-891.0,0.00035125,2]
[424153663,1780613453000,-151.0,0.00035158,7]
[424153658,1780613453000,-1179.31,0.000351,30]
[424153656,1780613453000,-220.68,0.0003503,30]
[424153694,1780613454000,-246.517908,0.00035284,7]
[424153691,1780613454000,-151.0,0.00035284,7]
[424153689,1780613454000,-151.0,0.00035284,7]
[424153690,1780613454000,-151.0,0.00035284,7]
[424153693,1780613454000,-246.517908,0.00035284,7]
[424153684,1780613454000,-300.0,0.00034904,2]
[424153695,1780613454000,-246.517908,0.00035284,7]
[424153683,1780613454000,-17651.72,0.00027397,10]
[424153679,1780613454000,-12237.99719076,0.0002,2]
[424153687,1780613454000,-151.0,0.00035284,7]
[424153685,1780613454000,-2758268.65433643,0.00035284,2]
[424153681,1780613454000,-400.0,0.00021823,2]
[424153682,1780613454000,-400.0,0.00021823,2]
[424153680,1780613454000,-13263.49,0.00021707,2]
[424153678,1780613454000,-1025.49280924,0.0002,2]
[424153677,1780613454000,-12387.98961112,0.00035284,2]
[424153688,1780613454000,-151.0,0.00035284,7]
[424153692,1780613454000,-246.517908,0.00035284,7]
[424153686,1780613454000,-151.0,0.00035284,7]
[424153698,1780613454000,-151.0,0.00035284,7]
[424153696,1780613454000,-151.0,0.00035284,7]
[424153714,1780613454000,-275.83916,0.00035284,7]
[424153712,1780613454000,-275.83916,0.00035284,7]
[424153711,1780613454000,-275.83916,0.00035284,7]
[424153710,1780613454000,-151.0,0.00035284,7]
[424153708,1780613454000,-187.729829,0.00035284,7]
[424153709,1780613454000,-187.729829,0.00035284,7]
[424153704,1780613454000,-151.0,0.00035284,7]
[424153713,1780613454000,-275.83916,0.00035284,7]
[424153697,1780613454000,-151.0,0.00035284,7]
[424153706,1780613454000,-187.729829,0.00035284,7]
[424153705,1780613454000,-151.0,0.00035284,7]
[424153701,1780613454000,-151.0,0.00035284,7]
[424153702,1780613454000,-151.0,0.00035284,7]
[424153707,1780613454000,-187.729829,0.00035284,7]
[424153699,1780613454000,-151.0,0.00035284,7]
[424153700,1780613454000,-151.0,0.00035284,7]
[424153703,1780613454000,-151.0,0.00035284,7]
[424153756,1780613455000,-500.0,0.00035284,2]
[424153755,1780613455000,-500.0,0.00035284,2]
[424153759,1780613455000,-500.0,0.00035284,2]
[424153758,1780613455000,-500.0,0.00035284,2]
[424153754,1780613455000,-500.0,0.00035284,2]
[424153753,1780613455000,-500.0,0.00035284,2]
[424153752,1780613455000,-500.0,0.00035284,2]
[424153751,1780613455000,-500.0,0.00035284,2]
[424153750,1780613455000,-500.0,0.00035284,2]
[424153742,1780613455000,-500.0,0.00035284,2]
[424153740,1780613455000,-500.0,0.00035284,2]
[424153760,1780613455000,-500.0,0.00035284,2]